bitfinex/quotes_ETHUSD_20240811
["timestamp","ask_amount","ask_price","bid_price","bid_amount"]
[1723396389329,2.925197,2632.3,2631.7,2.65979]
[1723396389524,0.265927,2632.3,2631.9,2.65966]
[1723396389704,2.563687,2632.7,2632.0,0.0759866]
[1723396389705,2.924757,2632.7,2632.0,0.0759866]
[1723396389872,0.265887,2632.7,2632.3,2.65925]
[1723396390217,2.924767,2632.7,2632.2,2.65934]
[1723396391819,2.924767,2632.7,2632.1,0.07597591]
[1723396392118,1.0194767,2632.6,2632.0,2.2967]
[1723396392415,2.65923,2632.4,2632.1,0.04999374]
[1723396392909,1.0194767,2632.6,2631.9,0.07598607]
[1723396393073,2.65891,2632.7,2632.2,2.70925946]
[1723396393280,2.65891,2632.7,2632.1,2.65939]
[1723396393281,2.65897,2632.6,2632.1,2.65939]
[1723396393478,2.65897,2632.6,2631.9,2.65965]
[1723396393479,2.65907,2632.5,2632.0,2.65954]
[1723396393712,2.65907,2632.5,2632.1,0.04999374]
[1723396394215,3.651801,2632.7,2632.1,0.04999374]
[1723396394401,2.65919,2632.4,2632.1,0.04999374]
[1723396394582,2.65919,2632.4,2631.7,2.65982]
[1723396394583,2.65927,2632.3,2631.7,2.65982]
[1723396394917,2.65927,2632.3,2632.2,0.04990946]
[1723396395122,2.65919,2632.4,2631.6,7.95658]
[1723396395123,2.65937,2632.2,2631.6,7.95657]
[1723396395281,2.65937,2632.2,2631.6,8.81173141]
[1723396395624,2.65937,2632.2,2631.6,3.51503141]
[1723396395771,2.65937,2632.2,2631.6,5.31979]
[1723396395976,2.65937,2632.2,2631.6,2.65987]
[1723396396207,2.65953,2632.1,2631.6,2.65987]
[1723396397282,2.65953,2632.1,2631.5,0.59504406]
[1723396397483,2.65959,2632.0,2631.5,3.25505406]
[1723396397718,2.65953,2632.1,2631.5,2.66001]
[1723396397876,2.65953,2632.1,2631.4,2.66011]
[1723396398212,2.65953,2632.1,2631.6,2.65992]
[1723396399317,5.31905,2632.1,2631.6,2.65992]
[1723396399492,2.65952,2632.1,2631.6,2.65992]
[1723396400416,2.65975,2631.9,2631.1,3.25560241]
[1723396400712,2.2583,2632.0,2631.2,2.37270323]
[1723396400713,4.91788,2632.0,2631.2,2.37270323]
[1723396400915,4.91788,2632.0,2631.5,2.65999]
[1723396401495,2.2583,2632.0,2631.4,2.66014]
[1723396401719,2.2583,2632.3,2631.9,2.65962]
[1723396401894,2.65922,2632.4,2631.9,2.65962]
[1723396402092,2.65933,2632.3,2631.8,2.73572529]
[1723396402398,2.65947,2632.1,2631.5,2.66]
[1723396402598,2.65947,2632.1,2631.4,2.79998363]
[1723396402599,2.65967,2631.9,2631.4,2.79998363]
[1723396402900,2.65967,2631.9,2631.4,0.50328363]
[1723396403217,2.65982,2631.8,2631.4,0.50328363]
[1723396403713,2.65967,2631.9,2631.2,2.66031]
[1723396404015,2.65988,2631.7,2631.3,3.0]
[1723396404513,2.66012,2631.5,2631.0,2.66051]
[1723396405132,2.66012,2631.5,2630.9,2.2967]
[1723396405133,2.66028,2631.3,2630.9,2.2967]
[1723396405309,2.66019,2631.4,2630.9,2.2967]
[1723396405620,2.66028,2631.3,2630.9,3.0]
[1723396405912,3.19232,2631.3,2630.6,4.95761]
[1723396406125,3.19232,2631.3,2631.0,0.05137805]
[1723396406126,2.66028,2631.3,2631.0,0.05137805]
[1723396406286,2.66028,2631.3,2630.7,2.66088]
[1723396406287,2.66043,2631.2,2630.7,2.66088]
[1723396406497,2.66043,2631.2,2631.1,0.05134295]
[1723396406714,2.66043,2631.2,2630.7,2.66088]
[1723396407014,2.66043,2631.2,2630.6,4.95761]
[1723396407221,2.66043,2631.2,2630.4,2.66112]
[1723396407222,2.66053,2631.1,2630.8,0.05159601]
[1723396407519,2.2583,2631.2,2630.7,0.05173887]
[1723396407726,2.66057,2631.1,2630.9,0.05000125]
[1723396407894,2.66057,2631.1,2630.8,0.05008561]
[1723396408098,2.66057,2631.1,2630.5,2.661]
[1723396408099,2.66064,2631.0,2630.5,2.661]
[1723396408278,2.66064,2631.0,2630.9,0.05000125]
[1723396408651,2.66064,2631.0,2630.9,0.0500382]
[1723396408814,2.66053,2631.1,2630.5,2.661]
[1723396409021,5.32069,2631.3,2630.9,0.0500382]
[1723396409324,5.31989,2631.7,2631.2,2.66033]
[1723396409483,2.65998,2631.6,2631.0,2.78644208]
[1723396409686,2.65998,2631.6,2631.3,0.04970082]
[1723396409922,2.65998,2631.6,2631.1,2.66043]
[1723396410218,5.32001,2631.6,2631.1,2.66043]
[1723396410422,2.65998,2631.6,2631.2,0.04980055]
[1723396411789,5.32001,2631.6,2631.2,0.04980055]
[1723396411986,2.65998,2631.6,2631.2,2.71017055]
[1723396412322,2.65983,2631.8,2631.2,2.71017055]
[1723396412541,2.65992,2631.7,2631.2,2.71013055]
[1723396412741,2.65998,2631.6,2631.2,2.71013055]
[1723396413443,2.65998,2631.6,2631.2,0.04980055]
[1723396413803,3.2434733,2631.6,2631.2,0.04980055]
[1723396414631,5.9035233,2631.6,2631.2,0.04980055]
[1723396415230,2.66008,2631.5,2631.2,0.04980055]
[1723396415627,3.2434733,2631.6,2631.2,0.04980055]
[1723396415628,2.66019,2631.4,2631.2,0.04980055]
[1723396415828,3.25055633,2631.4,2631.2,0.04980055]
[1723396416038,3.25055633,2631.4,2630.9,5.14462]
[1723396416249,3.25055633,2631.4,2631.3,0.04958075]
[1723396416250,2.66019,2631.4,2631.3,0.04958075]
[1723396416450,2.66019,2631.4,2630.5,0.49577]
[1723396416451,2.6604,2631.2,2630.7,2.66083]
[1723396416944,2.66049,2631.1,2630.7,2.66083]
[1723396417152,5.15165,2631.4,2630.7,2.66083]
[1723396417345,2.6605,2631.1,2630.6,5.14498]
[1723396417552,0.532089,2631.0,2630.6,5.14498]
[1723396417751,2.6605,2631.1,2630.6,5.14498]
[1723396418430,2.6605,2631.1,2630.4,2.66112]
[1723396418431,2.66054,2631.1,2630.4,2.66112]
[1723396418638,2.66073,2630.9,2630.4,2.66112]
[1723396418934,5.32147,2630.9,2630.4,2.66112]
[1723396419137,2.66081,2630.8,2630.3,5.14526]
[1723396419341,2.66081,2630.8,2630.3,5.14527]
[1723396419511,2.66073,2630.9,2630.3,2.484]
[1723396419715,2.66084,2630.8,2630.3,5.14527]
[1723396420420,2.66084,2630.8,2629.8,5.38578]
[1723396420421,2.66084,2630.8,2630.2,2.66132]
[1723396420633,2.66106,2630.6,2630.1,2.66144]
[1723396420839,2.6608,2630.8,2630.1,2.66147]
[1723396421154,2.66094,2630.7,2630.2,2.71200271]
[1723396421455,2.66094,2630.7,2630.2,0.05066271]
[1723396421659,2.66094,2630.7,2630.2,2.71203271]
[1723396422330,3.2275463,2630.8,2630.3,2.66128]
[1723396422657,2.66033,2631.3,2630.6,2.6609]
[1723396422658,5.15174,2631.3,2630.6,2.6609]
[1723396422969,2.91637445,2632.0,2630.4,2.6105254]
[1723396422970,2.4914,2631.8,2631.0,2.66053]
[1723396423122,2.66007,2631.5,2630.8,5.14473]
[1723396423320,2.66025,2631.4,2631.1,0.05010356]
[1723396423626,2.66028,2631.3,2631.2,0.05001922]
[1723396423828,2.4914,2631.4,2631.2,0.05001922]
[1723396424024,2.4914,2631.4,2630.9,2.66068]
[1723396424222,2.66029,2631.3,2630.8,0.07600805]
[1723396424625,2.66047,2631.2,2630.7,2.66087]
[1723396425052,5.32063,2631.3,2630.8,2.66078]
[1723396425363,5.32063,2631.3,2630.6,2.484]
[1723396425364,2.66038,2631.2,2630.7,2.66088]
[1723396425667,2.66029,2631.3,2630.7,2.66083]
[1723396425873,2.66044,2631.2,2630.7,2.66083]
[1723396427638,2.66068,2630.9,2630.5,2.66102]
[1723396428075,2.66068,2630.9,2630.4,5.27256]
[1723396428851,2.66068,2630.9,2630.5,2.66108]
[1723396429037,0.781213,2631.2,2630.2,2.6114]
[1723396429239,0.781213,2631.2,2630.2,3.149959]
[1723396430057,2.66072,2630.9,2630.4,2.66118]
[1723396430228,0.781213,2631.2,2630.2,2.6114]
[1723396430433,2.66089,2630.7,2630.2,5.27278]
[1723396431370,2.66089,2630.7,2630.2,5.27279]
[1723396431371,2.66096,2630.7,2630.2,5.27279]
[1723396431732,2.66096,2630.7,2630.2,5.27273]
[1723396431965,2.66096,2630.7,2630.0,5.66154]
[1723396431966,2.661,2630.6,2630.0,5.66151]
[1723396432175,2.66114,2630.5,2630.0,2.66151]
[1723396432843,2.6613,2630.3,2629.8,2.66172]
[1723396433048,5.27124,2630.5,2630.0,2.66153]
[1723396433049,0.6115269,2630.5,2630.0,2.66153]
[1723396433249,6.115069,2630.7,2630.2,2.66132]
[1723396433439,6.115069,2630.7,2630.2,5.27272]
[1723396433440,3.454119,2630.7,2630.2,5.27272]
[1723396434447,0.793179,2630.7,2630.3,2.66128]
[1723396434693,3.454069,2630.7,2630.3,2.66128]
[1723396434860,2.66089,2630.7,2630.3,2.66128]
[1723396435176,2.66089,2630.7,2630.2,2.6114]
[1723396435361,2.66089,2630.7,2630.2,2.66138]
[1723396435880,2.66089,2630.7,2630.0,5.2729]
[1723396435881,2.6611,2630.5,2630.0,5.2729]
[1723396436071,2.6611,2630.5,2630.3,0.05084933]
[1723396436369,2.6611,2630.5,2630.1,2.66147]
[1723396436580,5.2712,2630.5,2629.9,5.32326]
[1723396436751,0.266089,2630.6,2630.1,2.66141]
[1723396436948,2.66101,2630.6,2630.2,0.05095529]
[1723396437287,2.66109,2630.5,2630.2,0.05095529]
[1723396437578,2.66101,2630.6,2630.2,0.05095529]
[1723396437736,2.66115,2630.5,2629.9,2.66163]
[1723396437942,5.32231,2630.5,2629.9,2.66163]
[1723396438480,2.66119,2630.4,2630.0,0.05133052]
[1723396438729,2.66115,2630.5,2630.0,2.71287052]
[1723396439039,2.66115,2630.5,2630.0,0.05133052]
[1723396439040,2.6612,2630.4,2630.0,0.05133052]
[1723396439385,3.2149451,2630.4,2630.0,0.05133052]
[1723396439679,3.2149451,2630.4,2629.7,2.6114]
[1723396439680,2.66159,2630.0,2629.7,2.6114]
[1723396439849,2.6617,2629.9,2629.4,8.53122529]
[1723396440051,2.6617,2629.9,2629.4,7.93563]
[1723396440285,2.6617,2629.9,2629.4,5.27351]
[1723396440491,2.66192,2629.7,2629.2,2.66234]
[1723396440785,2.66185,2629.8,2629.2,2.66233]
[1723396440936,2.66185,2629.8,2629.3,2.66229]
[1723396441137,2.66196,2629.7,2629.2,2.66233]
[1723396441677,0.793329,2629.9,2629.4,2.66215]
[1723396442055,2.6619,2629.7,2629.1,5.27383]
[1723396442375,2.6101,2629.6,2628.9,2.66261]
[1723396442577,5.27216,2629.6,2629.1,2.6625]
[1723396442778,2.6101,2629.6,2629.1,2.66244]
[1723396443337,2.6101,2629.6,2629.3,2.66229]
[1723396443590,2.66158,2630.1,2629.5,5.32408]
[1723396443754,3.5537351,2630.4,2629.8,2.66171]
[1723396443755,3.2150051,2630.4,2629.8,2.66171]
[1723396443957,2.66136,2630.3,2629.8,2.66171]
[1723396444263,2.66136,2630.3,2629.8,5.32345]
[1723396444464,3.2149251,2630.4,2629.8,2.66171]
[1723396444666,3.2149251,2630.4,2629.8,5.32345]
[1723396444667,0.58250251,2630.3,2629.8,5.32345]
[1723396444869,0.58250251,2630.3,2629.8,2.73775503]
[1723396445062,0.5537351,2630.4,2629.8,2.73775503]
[1723396445252,2.927091,2630.6,2630.0,2.66152]
[1723396445453,3.0,2630.5,2630.0,2.66152]
[1723396445653,0.266101,2630.6,2630.2,2.66129]
[1723396445855,2.66084,2630.8,2630.2,2.66129]
[1723396446086,3.187924,2630.8,2630.3,2.66127]
[1723396446286,2.6609,2630.7,2630.3,2.66127]
[1723396447189,2.6609,2630.7,2630.1,2.66146]
[1723396447190,2.66104,2630.6,2630.1,2.66146]
[1723396447394,0.527084,2630.8,2629.9,2.66168]
[1723396447395,2.876204,2630.5,2629.9,2.66164]
[1723396447608,2.6101,2630.5,2629.9,2.66164]
[1723396447950,2.6101,2630.5,2629.7,2.68744427]
[1723396447951,2.66131,2630.3,2629.7,5.27322]
[1723396448175,2.6614,2630.2,2629.7,2.66182]
[1723396448699,2.6615,2630.1,2629.7,2.66182]
[1723396449046,2.6615,2630.1,2629.5,5.32404]
[1723396449252,2.6615,2630.1,2629.4,5.28359]
[1723396449493,2.66178,2629.9,2629.2,2.66233]
[1723396450253,2.66185,2629.8,2629.3,2.66228]
[1723396450491,2.6619,2629.7,2629.2,2.66233]
[1723396450693,0.783153,2629.8,2629.0,5.38653]
[1723396450694,0.783153,2629.8,2629.4,2.66213]
[1723396450993,2.66175,2629.9,2629.5,0.05064493]
[1723396451300,2.662,2629.6,2629.5,0.05064493]
[1723396451652,2.6624,2629.3,2628.8,2.66276]
[1723396451850,2.6624,2629.3,2628.6,2.66294]
[1723396451851,2.66225,2629.4,2628.9,2.66263]
[1723396452055,2.66239,2629.3,2628.6,2.66292]
[1723396452359,2.66254,2629.1,2628.6,2.66292]
[1723396452694,0.266239,2629.3,2628.4,2.6214]
[1723396452695,0.266239,2629.3,2628.8,2.66277]
[1723396452997,2.66221,2629.4,2628.9,2.66264]
[1723396453352,5.16997,2629.6,2628.9,2.66264]
[1723396453580,5.16997,2629.6,2628.5,2.7391427]
[1723396453581,2.5079,2629.6,2629.1,2.66248]
[1723396453829,2.66185,2629.8,2628.9,2.6214]
[1723396454023,2.6619,2629.7,2629.2,2.66235]
[1723396454408,2.6619,2629.7,2629.1,2.66242]
[1723396454834,2.66225,2629.4,2628.6,2.6214]
[1723396455036,2.5079,2629.4,2628.9,2.66264]
[1723396455240,5.16986,2629.7,2628.9,2.66264]
[1723396455398,5.16986,2629.7,2629.1,5.32498]
[1723396455599,2.6621,2629.5,2628.9,5.32529]
[1723396455901,2.6621,2629.5,2628.8,2.66274]
[1723396456125,2.66231,2629.3,2628.7,8.32573]
[1723396456346,3.194751,2629.3,2628.7,5.66284]
[1723396456521,2.66246,2629.2,2628.5,2.9252]
[1723396456716,2.66231,2629.3,2628.7,2.66282]
[1723396456917,2.66231,2629.3,2628.8,2.6628]
[1723396457337,2.66215,2629.5,2628.8,2.6628]
[1723396457655,0.266215,2629.4,2628.8,2.6628]
[1723396458039,2.66232,2629.3,2628.8,2.6628]
[1723396458212,0.266215,2629.4,2628.8,2.6628]
[1723396458532,2.66215,2629.5,2629.0,2.66258]
[1723396458533,2.66212,2629.5,2629.0,2.66258]
[1723396459055,5.16985,2629.7,2629.1,2.6625]
[1723396459216,5.16985,2629.7,2628.9,2.66263]
[1723396459217,2.5079,2629.7,2628.9,2.66263]
[1723396459565,2.66217,2629.5,2628.9,5.32528]
[1723396459726,2.66216,2629.5,2628.9,2.66263]
[1723396459911,2.66216,2629.5,2628.1,2.66349]
[1723396459912,2.5079,2629.4,2628.6,2.66292]
[1723396460114,2.66235,2629.3,2628.6,2.66292]
[1723396460324,2.66235,2629.3,2628.7,2.66286]
[1723396460524,7.83245,2629.4,2628.8,2.66271]
[1723396460751,3.291145,2629.4,2628.6,2.66294]
[1723396460958,2.66256,2629.1,2628.4,2.66314]
[1723396462070,2.5079,2628.9,2628.4,2.66314]
[1723396462237,2.5079,2628.9,2628.3,3.0]
[1723396462431,2.5079,2628.9,2628.5,2.6631]
[1723396464047,0.517051,2628.8,2628.2,2.6634]
[1723396464379,2.66297,2628.7,2628.1,2.66352]
[1723396464687,2.6632,2628.5,2627.4,5.28558]
[1723396464985,7.27,2628.6,2628.2,2.66336]
[1723396465280,5.32573,2628.8,2628.2,2.66336]
[1723396465481,2.66286,2628.8,2628.2,2.66336]
[1723396465844,5.32572,2628.8,2628.2,2.66336]
[1723396466039,2.66291,2628.7,2628.3,0.0521676]
[1723396466441,2.5079,2628.5,2628.3,0.0521676]
[1723396466664,2.5079,2628.5,2628.0,2.66356]
[1723396466865,5.17104,2628.5,2628.4,0.05208308]
[1723396467068,5.17104,2628.5,2628.0,2.66356]
[1723396467069,3.024997,2628.5,2628.0,2.66356]
[1723396467381,5.688107,2628.5,2628.0,2.66356]
[1723396467882,3.024997,2628.5,2628.1,0.05233665]
[1723396468181,5.688117,2628.5,2628.1,0.05233665]
[1723396469303,2.66326,2628.4,2628.1,0.05233665]
[1723396469707,2.66326,2628.4,2627.8,5.32752]
[1723396469918,5.32653,2628.4,2628.2,0.05225212]
[1723396470130,4.2254127,2628.4,2627.8,5.32752]
[1723396470332,6.8886727,2628.4,2628.3,0.0521676]
[1723396470511,2.66335,2628.3,2627.8,2.66377]
[1723396470924,1.5621527,2628.4,2627.9,0.05277724]
[1723396471124,4.2253727,2628.4,2627.9,2.71644724]
[1723396471333,4.2253727,2628.4,2627.9,2.66367]
[1723396471553,4.2253727,2628.4,2628.0,2.71626269]
[1723396471554,1.5621527,2628.4,2628.0,2.71626269]
[1723396471715,5.688117,2628.5,2628.0,2.71626269]
[1723396472106,2.66322,2628.4,2628.0,0.05269269]
[1723396472311,5.688117,2628.5,2628.0,2.71624269]
[1723396472621,3.024997,2628.5,2628.1,0.05260815]
[1723396472824,3.024997,2628.5,2627.6,0.07610761]
[1723396472825,1.2958117,2628.4,2627.6,0.07610761]
[1723396473033,3.9590417,2628.4,2627.9,2.66369]
[1723396473347,3.9590417,2628.4,2628.0,0.05269269]
[1723396473545,2.66343,2628.2,2628.0,0.05269269]
[1723396473736,2.66343,2628.2,2627.7,2.66392]
[1723396474350,2.66343,2628.2,2627.8,0.05286179]
[1723396474553,2.66352,2628.1,2627.8,0.05286179]
[1723396474757,2.66352,2628.1,2627.6,5.328]
[1723396474758,5.09222,2628.1,2627.6,2.664]
[1723396475058,5.09222,2628.1,2627.6,2.66397]
[1723396475216,5.09222,2628.1,2627.7,0.05294635]
[1723396475217,2.66362,2628.0,2627.7,0.05294635]
[1723396475418,2.66362,2628.0,2627.4,2.66415]
[1723396475631,2.66372,2627.9,2627.5,0.05331299]
[1723396476380,2.66385,2627.8,2627.5,0.05331299]
[1723396476525,2.66385,2627.8,2627.3,2.66428]
[1723396476732,2.66385,2627.8,2627.6,0.05327781]
[1723396476932,2.66385,2627.8,2627.3,2.66428]
[1723396477132,2.66385,2627.8,2627.7,0.05319325]
[1723396477332,2.66385,2627.8,2627.4,2.66422]
[1723396477527,2.66372,2627.9,2627.7,0.05319325]
[1723396477726,0.32569749,2627.8,2627.4,2.66422]
[1723396478143,2.98957749,2627.8,2627.3,2.66431]
[1723396478353,2.66374,2627.9,2627.4,2.66422]
[1723396479225,2.66374,2627.9,2627.4,5.3284]
[1723396479427,0.59325494,2628.0,2627.6,2.66394]
[1723396479762,2.4287,2628.1,2627.7,2.66391]
[1723396479956,6.594798,2628.1,2627.7,2.66391]
[1723396480372,9.93342,2628.2,2627.7,2.66391]
[1723396480738,9.93342,2628.2,2627.5,2.66405]
[1723396480739,7.27,2628.2,2627.9,2.66367]
[1723396480940,7.27,2628.2,2628.0,2.66357]
[1723396481163,7.27,2628.2,2628.0,2.66361]
[1723396481474,7.27,2628.2,2628.1,2.71639667]
[1723396482351,4.61841,2628.2,2628.1,0.05287667]
[1723396482542,2.66341,2628.2,2628.1,0.05287667]
[1723396482857,2.66341,2628.2,2628.1,0.0530279]
[1723396483164,2.66332,2628.3,2627.7,2.66392]
[1723396483333,2.66357,2628.1,2627.6,2.664]
[1723396483532,2.66357,2628.1,2627.5,5.32818]
[1723396483734,2.66357,2628.1,2627.5,2.66407]
[1723396483970,0.266332,2628.2,2627.4,2.587]
[1723396484131,2.929752,2628.2,2627.7,2.66382]
[1723396484435,2.929792,2628.2,2627.7,2.66382]
[1723396485054,0.266332,2628.2,2627.7,2.66382]
[1723396485273,9.93333,2628.3,2627.8,2.66374]
[1723396485573,9.93333,2628.3,2628.1,2.66352]
[1723396485574,7.27,2628.3,2628.1,2.66352]
[1723396485734,5.09182,2628.5,2628.1,2.66352]
[1723396486067,5.900988,2628.5,2628.1,2.66352]
[1723396486278,5.900988,2628.5,2628.0,2.66355]
[1723396486740,2.4287,2628.5,2628.2,2.66338]
[1723396486944,12.36168,2628.7,2628.2,2.66338]
[1723396487155,1.293298,2628.6,2628.2,2.66336]
[1723396487992,2.66316,2628.5,2627.9,2.6637]
[1723396488149,3.0589058,2628.4,2627.9,2.6637]
[1723396489249,3.956318,2628.6,2628.0,2.6636]
[1723396489479,1.293298,2628.6,2628.3,2.66329]
[1723396489648,9.6987,2628.7,2628.3,2.66329]
[1723396489953,12.36161,2628.7,2628.1,5.03494]
[1723396490282,7.27,2628.7,2628.4,2.66314]
[1723396490485,7.27,2628.7,2628.5,2.66309]
[1723396490661,9.734166,2628.7,2628.5,0.05265276]
[1723396490858,27.14,2629.1,2628.9,2.66266]
[1723396491047,2.4289,2629.3,2628.5,5.0346]
[1723396491252,2.4289,2629.3,2628.7,2.66283]
[1723396491563,3.665006,2629.3,2628.9,2.66266]
[1723396491766,3.665006,2629.3,2628.7,2.66283]
[1723396491767,6.327366,2629.3,2628.8,0.05214616]
[1723396491983,6.327366,2629.3,2629.0,0.05197719]
[1723396492148,0.6327366,2629.2,2628.9,0.05206167]
[1723396492483,0.6327366,2629.2,2629.0,0.05197719]
[1723396492897,0.6327366,2629.2,2628.8,2.66279]
[1723396493401,9.93217,2629.5,2629.0,2.66255]
[1723396493548,7.27,2629.5,2629.0,2.66255]
[1723396493888,9.93212,2629.5,2629.0,2.66255]
[1723396494287,9.93212,2629.5,2629.1,0.0517045]
[1723396494600,2.66225,2629.4,2629.1,0.0517045]
[1723396494804,4.164577,2629.4,2628.9,2.66269]
[1723396495171,1.502327,2629.4,2629.0,5.3252]
[1723396495373,9.93211,2629.5,2629.0,2.6626]
[1723396495707,9.93211,2629.5,2628.8,2.66273]
[1723396495708,24.64075,2629.8,2629.3,2.66223]
[1723396495912,24.64075,2629.8,2629.1,2.66244]
[1723396495913,2.464075,2629.7,2629.1,2.66244]
[1723396496204,2.662,2629.6,2629.1,2.66243]
[1723396496408,2.662,2629.6,2629.2,0.05162312]
[1723396496792,5.09075,2629.8,2629.2,0.05162312]
[1723396497178,2.66191,2629.7,2629.2,2.6624]
[1723396497382,2.66191,2629.7,2629.3,0.05153865]
[1723396497589,2.66191,2629.7,2629.2,2.6624]
[1723396497590,0.775266,2629.6,2629.2,2.6624]
[1723396497794,2.4289,2629.8,2629.3,0.05153865]
[1723396498000,2.4289,2629.8,2629.0,0.07606702]
[1723396498001,5.09055,2630.0,2629.4,2.66212]
[1723396498169,5.09055,2630.0,2629.5,2.71339975]
[1723396498370,1.236055,2629.9,2629.5,2.71339975]
[1723396498565,3.897755,2629.9,2629.5,0.05136975]
[1723396499214,2.66181,2629.8,2629.5,0.05136975]
[1723396499386,2.662,2629.6,2629.1,2.66245]
[1723396499586,2.662,2629.6,2629.2,0.05162312]
[1723396499880,0.3897865,2629.7,2629.2,0.05162312]
[1723396500504,3.0516865,2629.7,2629.2,2.71397312]
[1723396500714,2.6619,2629.7,2629.2,2.71397312]
[1723396501431,6.559545,2629.9,2629.3,2.66224]
[1723396501611,3.897755,2629.9,2629.4,2.66214]
[1723396501925,1.236055,2629.9,2629.5,2.66204]
[1723396502123,2.4289,2630.0,2629.5,2.66204]
[1723396502124,2.4289,2630.0,2629.6,2.66194]
[1723396503021,5.09051,2630.0,2629.5,2.66204]
[1723396503212,4.16395,2629.9,2629.6,0.05087192]
[1723396503406,4.16395,2629.9,2629.3,2.66224]
[1723396503613,2.4289,2630.0,2629.6,2.66198]
[1723396503925,2.4289,2630.0,2629.7,0.05078748]
[1723396504109,5.09049,2630.0,2629.7,0.05078748]
[1723396504429,5.09049,2630.0,2629.2,2.66233]
[1723396504630,2.6618,2629.8,2629.3,0.05112526]
[1723396504818,2.66195,2629.7,2629.3,0.05112526]
[1723396505018,5.32367,2629.8,2629.3,0.05112526]
[1723396505322,6.2225219,2629.8,2629.3,0.05112526]
[1723396505533,3.5606619,2629.8,2629.3,0.05112526]
[1723396505907,0.8988619,2629.8,2629.3,0.05112526]
[1723396506107,2.4289,2630.0,2629.3,0.1271894]
[1723396506325,7.27,2630.1,2629.7,2.66189]
[1723396506546,12.395585,2630.1,2629.5,5.3241]
[1723396506722,12.395585,2630.1,2629.8,0.04910107]
[1723396506924,12.395585,2630.1,2629.6,2.662]
[1723396507262,12.395585,2630.1,2629.5,5.32405]
[1723396507419,12.395585,2630.1,2629.6,0.04926994]
[1723396507626,4.1441085,2630.0,2629.5,2.662]
[1723396507846,4.1441085,2630.0,2629.6,0.04924527]
[1723396507847,1.4824485,2630.0,2629.6,0.04924527]
[1723396508046,1.4824485,2630.0,2629.6,2.66199]
[1723396508247,1.4824485,2630.0,2629.7,2.66189]
[1723396508530,5.125535,2630.1,2629.8,0.0490764]
[1723396508956,5.125535,2630.1,2629.6,2.66197]
[1723396509151,0.7554435,2630.0,2629.6,2.66197]
[1723396509378,0.7554435,2630.0,2629.7,0.04916083]
[1723396510263,2.6274435,2630.0,2629.7,0.04916083]
[1723396510445,1.872,2630.0,2629.7,0.04916083]
[1723396510623,2.66175,2629.9,2629.4,2.66217]
[1723396510823,2.66175,2629.9,2629.4,2.66214]
[1723396511029,0.719542,2629.8,2629.4,2.66214]
[1723396511229,0.719542,2629.8,2629.5,0.04932971]
[1723396512527,2.66175,2629.9,2629.5,0.04932971]
[1723396512732,4.5336,2630.0,2629.5,2.71141971]
[1723396512947,1.872,2630.0,2629.6,2.66194]
[1723396513143,1.872,2630.0,2629.6,2.7111205]
[1723396513343,1.872,2630.0,2629.7,2.66186]
[1723396513567,4.53364,2630.0,2629.7,0.04909607]
[1723396513936,2.5992,2629.8,2629.2,2.66233]
[1723396514158,5.26101,2629.8,2629.2,2.66233]
[1723396514363,5.26101,2629.8,2629.3,2.66225]
[1723396517354,2.66196,2629.7,2629.2,2.66233]
[1723396517562,2.66215,2629.5,2629.0,2.4551]
[1723396517732,0.792297,2629.7,2628.8,2.4551]
[1723396517931,2.6623,2629.3,2628.8,5.11785]
[1723396518132,2.66255,2629.1,2628.6,2.66294]
[1723396518388,2.66246,2629.2,2628.7,2.66284]
[1723396518565,2.66246,2629.2,2628.7,5.32568]
[1723396518566,2.66241,2629.2,2628.7,5.32568]
[1723396518743,2.66241,2629.2,2628.7,2.66284]
[1723396519283,6.24833,2629.4,2628.7,2.66284]
[1723396519484,6.24833,2629.4,2628.9,2.6627]
[1723396519698,9.93206,2629.6,2628.9,2.6627]
[1723396519860,7.27,2629.6,2629.2,2.66237]
[1723396520193,2.5992,2629.7,2629.3,2.71017763]
[1723396520551,5.26112,2629.7,2629.3,0.04793763]
[1723396520782,7.27,2629.9,2629.3,0.04793763]
[1723396520947,7.27,2629.9,2629.7,2.66184]
[1723396521153,7.27,2629.9,2629.6,2.6619]
[1723396521475,7.27,2629.9,2629.8,2.66179]
[1723396521676,4.5336,2630.0,2629.8,0.04766036]
[1723396521991,4.5336,2630.0,2629.5,2.6621]
[1723396522197,1.872,2630.0,2629.6,2.66199]
[1723396522366,1.872,2630.0,2629.6,2.70981923]
[1723396522567,1.872,2630.0,2629.7,2.66189]
[1723396522905,1.872,2630.0,2629.8,0.04766036]
[1723396523190,1.872,2630.0,2629.8,2.70945036]
[1723396523399,1.872,2630.0,2629.8,2.66179]
[1723396523597,1.872,2630.0,2629.6,2.66191]
[1723396523903,1.872,2630.0,2629.8,2.66179]
[1723396524200,1.872,2630.0,2629.9,5.32338]
[1723396524555,1.872,2630.0,2629.9,2.70899459]
[1723396524976,1.872,2630.0,2629.9,0.04730459]
[1723396525449,4.5336,2630.0,2629.4,2.66217]
[1723396525649,0.71328,2629.9,2629.5,0.04759608]
[1723396526187,3.37498,2629.9,2629.5,0.04759608]
[1723396526889,2.66192,2629.7,2629.5,0.04759608]
[1723396527197,2.66192,2629.7,2629.2,2.66234]
[1723396527198,3.37498,2629.9,2629.4,2.6622]
[1723396527380,2.6618,2629.8,2629.6,0.04751164]
[1723396527686,2.6618,2629.8,2629.2,2.66233]
[1723396527687,0.790878,2629.8,2629.7,0.04749503]
[1723396527848,3.452668,2629.8,2629.2,5.32464]
[1723396528054,3.452668,2629.8,2629.3,0.04783281]
[1723396528250,2.66179,2629.8,2629.3,0.04783281]
[1723396528488,2.6617,2629.9,2629.3,0.04783281]